[Event "*** Titled Tuesday Blitz"]
[Site "Chess.com"]
[Date "2021.02.09"]
[Round "10"]
[White "JiiHart"]
[Black "MarceloPlaya"]
[Result "0-1"]
[WhiteElo "2102"]
[BlackElo "2277"]
[TimeControl "180+1"]
[EndTime "11:54:54 PST"]
[Termination "MarceloPlaya won by resignation"]

1. e4 {[%clk 0:03:00.9]} 1... e6 {[%clk 0:02:59.8]} 2. d4 {[%clk 0:03:00.5]}
2... d5 {[%clk 0:02:59.9]} 3. Nc3 {[%clk 0:03:01]} 3... Bb4 {[%clk 0:02:59.1]}
4. e5 {[%clk 0:03:01]} 4... c5 {[%clk 0:02:59.2]} 5. a3 {[%clk 0:03:01.1]} 5...
Bxc3+ {[%clk 0:02:59.3]} 6. bxc3 {[%clk 0:03:02]} 6... Ne7 {[%clk 0:02:59.6]} 7.
Qg4 {[%clk 0:03:02]} 7... Qc7 {[%clk 0:02:59.1]} 8. Qxg7 {[%clk 0:02:58.3]} 8...
Rg8 {[%clk 0:02:59]} 9. Qxh7 {[%clk 0:02:58.5]} 9... cxd4 {[%clk 0:02:59.1]} 10.
Ne2 {[%clk 0:02:57.8]} 10... Nbc6 {[%clk 0:02:59.1]} 11. f4 {[%clk 0:02:57.2]}
11... dxc3 {[%clk 0:02:59]} 12. Qd3 {[%clk 0:02:56.2]} 12... Bd7 {[%clk
0:02:59.1]} 13. Rg1 {[%clk 0:02:23.3]} 13... Rc8 {[%clk 0:02:48.7]} 14. g4
{[%clk 0:02:01]} 14... Na5 {[%clk 0:02:46.5]} 15. a4 {[%clk 0:01:47.3]} 15...
Nc4 {[%clk 0:02:21.6]} 16. Rb1 {[%clk 0:01:02.3]} 16... Bxa4 {[%clk 0:02:17.7]}
17. Nxc3 {[%clk 0:00:58.9]} 17... Nxe5 {[%clk 0:02:07.8]} 18. fxe5 {[%clk
0:00:45.4]} 18... Qxc3+ {[%clk 0:02:06.2]} 19. Qxc3 {[%clk 0:00:33.7]} 19...
Rxc3 {[%clk 0:02:05.4]} 20. Rxb7 {[%clk 0:00:23.9]} 20... Rxc2 {[%clk
0:02:04.7]} 21. Ba3 {[%clk 0:00:19.1]} 21... Nc6 {[%clk 0:01:57.2]} 22. Bd3
{[%clk 0:00:15.2]} 22... Rxh2 {[%clk 0:01:47.5]} 23. Bb5 {[%clk 0:00:09]} 23...
Bxb5 {[%clk 0:01:45.3]} 24. Rxb5 {[%clk 0:00:09.9]} 24... Rgh8 {[%clk
0:01:27.2]} 25. Bd6 {[%clk 0:00:08.8]} 25... Nd4 {[%clk 0:01:19]} 26. Rb8+
{[%clk 0:00:08.1]} 26... Kd7 {[%clk 0:01:18.4]} 27. Rxh8 {[%clk 0:00:07.9]}
27... Rxh8 {[%clk 0:01:18]} 28. Kf2 {[%clk 0:00:07.8]} 28... Rh2+ {[%clk
0:01:10.7]} 29. Kg3 {[%clk 0:00:07.8]} 29... Rb2 {[%clk 0:01:07.8]} 30. Rf1
{[%clk 0:00:07.8]} 30... Rb3+ {[%clk 0:01:05]} 31. Kh4 {[%clk 0:00:07.9]} 31...
f5 {[%clk 0:01:04.3]} 32. gxf5 {[%clk 0:00:06.5]} 32... Nxf5+ {[%clk 0:01:03.7]}
33. Kg5 {[%clk 0:00:06.8]} 33... Nxd6 {[%clk 0:01:03.7]} 34. exd6 {[%clk
0:00:06.1]} 34... Kxd6 {[%clk 0:01:03.9]} 35. Ra1 {[%clk 0:00:06.6]} 35... Rb7
{[%clk 0:01:02.4]} 36. Ra6+ {[%clk 0:00:06.5]} 36... Ke5 {[%clk 0:01:02.2]} 37.
Kg6 {[%clk 0:00:06.6]} 37... d4 {[%clk 0:01:01.6]} 38. Kg5 {[%clk 0:00:06.8]}
38... Kd5 {[%clk 0:01:00.4]} 39. Kg4 {[%clk 0:00:06.9]} 39... Rf7 {[%clk
0:00:57.3]} 40. Kg3 {[%clk 0:00:06.1]} 40... e5 {[%clk 0:00:56.7]} 41. Ra5+
{[%clk 0:00:05.2]} 41... Ke4 {[%clk 0:00:56.2]} 0-1

[Event "*** Titled Tuesday Blitz"]
[Site "Chess.com"]
[Date "2021.02.09"]
[Round "10"]
[White "Klavdia_Nik"]
[Black "ElCoachRene"]
[Result "0-1"]
[WhiteElo "2058"]
[BlackElo "2198"]
[TimeControl "180+1"]
[EndTime "11:54:54 PST"]
[Termination "ElCoachRene won on time"]

1. Nf3 {[%clk 0:02:41.1]} 1... Nc6 {[%clk 0:03:00.9]} 2. d4 {[%clk 0:02:31.1]}
2... d5 {[%clk 0:03:00.9]} 3. g3 {[%clk 0:02:30.5]} 3... Bg4 {[%clk 0:03:00.9]}
4. Bg2 {[%clk 0:02:30.7]} 4... Nf6 {[%clk 0:03:01.3]} 5. h3 {[%clk 0:02:24.6]}
5... Bxf3 {[%clk 0:02:59.6]} 6. Bxf3 {[%clk 0:02:22.7]} 6... e6 {[%clk
0:03:00.5]} 7. O-O {[%clk 0:02:08.3]} 7... Bd6 {[%clk 0:03:01]} 8. c4 {[%clk
0:02:03.1]} 8... O-O {[%clk 0:02:59.5]} 9. Nc3 {[%clk 0:02:00.9]} 9... dxc4
{[%clk 0:02:58.4]} 10. e4 {[%clk 0:01:59.4]} 10... Be7 {[%clk 0:02:57.1]} 11.
Be3 {[%clk 0:01:56.9]} 11... Nb4 {[%clk 0:02:54.3]} 12. a3 {[%clk 0:01:47.5]}
12... Nd3 {[%clk 0:02:53.9]} 13. b3 {[%clk 0:01:43.3]} 13... c6 {[%clk 0:02:32]}
14. bxc4 {[%clk 0:01:41.2]} 14... Nb2 {[%clk 0:02:30.4]} 15. Qb3 {[%clk
0:01:41]} 15... Qb6 {[%clk 0:02:23.7]} 16. Qa2 {[%clk 0:01:15.9]} 16... Nd3
{[%clk 0:02:13.5]} 17. Rfd1 {[%clk 0:01:03.8]} 17... Qa5 {[%clk 0:02:01.2]} 18.
Rxd3 {[%clk 0:01:03]} 18... Rfd8 {[%clk 0:01:57.7]} 19. Ne2 {[%clk 0:01:00.2]}
19... e5 {[%clk 0:01:49.6]} 20. d5 {[%clk 0:00:55.3]} 20... cxd5 {[%clk
0:01:45.3]} 21. cxd5 {[%clk 0:00:55]} 21... Nd7 {[%clk 0:01:42.2]} 22. Qd2
{[%clk 0:00:48.7]} 22... Qa6 {[%clk 0:01:38.9]} 23. a4 {[%clk 0:00:35]} 23...
Bc5 {[%clk 0:01:37.6]} 24. Rb3 {[%clk 0:00:25.2]} 24... b6 {[%clk 0:01:34.3]}
25. Nc3 {[%clk 0:00:16.1]} 25... Rac8 {[%clk 0:01:32.9]} 26. Nb5 {[%clk
0:00:11.7]} 26... Bf8 {[%clk 0:01:25.3]} 27. Be2 {[%clk 0:00:09.8]} 27... Qb7
{[%clk 0:01:24.6]} 28. Rc1 {[%clk 0:00:09.1]} 28... a6 {[%clk 0:01:23.4]} 29.
Nc3 {[%clk 0:00:07.3]} 29... Bc5 {[%clk 0:01:19.7]} 30. Na2 {[%clk 0:00:05.4]}
30... Qa7 {[%clk 0:01:18.5]} 31. Rbc3 {[%clk 0:00:03.9]} 31... Bxe3 {[%clk
0:01:17.2]} 32. Qxe3 {[%clk 0:00:03.7]} 32... Nc5 {[%clk 0:01:17.3]} 33. a5
{[%clk 0:00:02]} 33... Qb7 {[%clk 0:01:09]} 34. axb6 {[%clk 0:00:02.1]} 34...
Qxb6 {[%clk 0:01:09.1]} 35. Rxc5 {[%clk 0:00:02.3]} 35... Rxc5 {[%clk
0:01:08.4]} 36. Qxc5 {[%clk 0:00:02.8]} 36... Qb2 {[%clk 0:01:07.7]} 37. Qc2
{[%clk 0:00:03.5]} 37... Qb6 {[%clk 0:01:06.8]} 38. Kh2 {[%clk 0:00:03.8]} 38...
Qxf2+ {[%clk 0:01:06]} 39. Kh1 {[%clk 0:00:03.9]} 39... Qxg3 {[%clk 0:01:04.1]}
40. Bf1 {[%clk 0:00:04.1]} 40... Qf3+ {[%clk 0:01:01.9]} 41. Qg2 {[%clk
0:00:03.5]} 41... Qf4 {[%clk 0:00:59.9]} 42. Bxa6 {[%clk 0:00:02.8]} 42... Rf8
{[%clk 0:00:59]} 43. Rc6 {[%clk 0:00:03.1]} 43... h6 {[%clk 0:00:59.4]} 0-1

[Event "*** Titled Tuesday Blitz"]
[Site "Chess.com"]
[Date "2021.02.09"]
[Round "10"]
[White "DanilNajdin"]
[Black "1977Ivan"]
[Result "0-1"]
[WhiteElo "2476"]
[BlackElo "2671"]
[TimeControl "180+1"]
[EndTime "11:54:55 PST"]
[Termination "1977Ivan won by resignation"]

1. e4 {[%clk 0:03:00.9]} 1... c5 {[%clk 0:02:59]} 2. Nf3 {[%clk 0:03:00.9]} 2...
e6 {[%clk 0:02:58.2]} 3. d4 {[%clk 0:03:00.5]} 3... cxd4 {[%clk 0:02:59.1]} 4.
Nxd4 {[%clk 0:03:01.4]} 4... Nc6 {[%clk 0:02:59.7]} 5. Nxc6 {[%clk 0:03:01.6]}
5... bxc6 {[%clk 0:02:58.2]} 6. Bd3 {[%clk 0:03:01.9]} 6... d5 {[%clk
0:02:58.5]} 7. Nd2 {[%clk 0:03:02.1]} 7... Bd6 {[%clk 0:02:58.7]} 8. O-O {[%clk
0:03:01.9]} 8... Ne7 {[%clk 0:02:59.2]} 9. b3 {[%clk 0:02:58.4]} 9... O-O {[%clk
0:02:58.9]} 10. Bb2 {[%clk 0:02:58.3]} 10... e5 {[%clk 0:02:59.1]} 11. Qe2
{[%clk 0:02:34.7]} 11... f5 {[%clk 0:02:37]} 12. exd5 {[%clk 0:01:56.1]} 12...
e4 {[%clk 0:02:32.9]} 13. Bc4 {[%clk 0:01:56.4]} 13... cxd5 {[%clk 0:02:32.2]}
14. Nxe4 {[%clk 0:01:56.6]} 14... fxe4 {[%clk 0:02:14.2]} 15. Qxe4 {[%clk
0:01:56.4]} 15... dxc4 {[%clk 0:01:47.4]} 16. Qxa8 {[%clk 0:01:54.7]} 16... Qc7
{[%clk 0:01:44.9]} 17. Qe4 {[%clk 0:01:39.6]} 17... c3 {[%clk 0:01:40.9]} 18.
Bc1 {[%clk 0:01:34]} 18... Bf5 {[%clk 0:01:37.2]} 19. Qe2 {[%clk 0:01:34.1]}
19... Bxh2+ {[%clk 0:01:35.8]} 20. Kh1 {[%clk 0:01:33.8]} 20... Bd6 {[%clk
0:01:34.2]} 21. Bg5 {[%clk 0:01:29.2]} 21... Ng6 {[%clk 0:01:34.2]} 22. Rad1
{[%clk 0:01:21.1]} 22... h6 {[%clk 0:01:31.9]} 23. Be3 {[%clk 0:01:16]} 23...
Kh7 {[%clk 0:01:31.2]} 24. Rd5 {[%clk 0:01:07.6]} 24... Qe7 {[%clk 0:01:17.1]}
25. Kg1 {[%clk 0:00:57.1]} 25... Nf4 {[%clk 0:01:16.2]} 26. Qb5 {[%clk
0:00:49.4]} 26... Nxd5 {[%clk 0:01:15.8]} 27. Qxd5 {[%clk 0:00:49.2]} 27... Be4
{[%clk 0:01:16.3]} 28. Qd4 {[%clk 0:00:44]} 28... Rf5 {[%clk 0:01:05.2]} 29. Rd1
{[%clk 0:00:38.8]} 29... Rd5 {[%clk 0:01:02.6]} 30. Qxd5 {[%clk 0:00:34.9]}
30... Bxd5 {[%clk 0:01:03.5]} 31. Rxd5 {[%clk 0:00:35.5]} 31... Bc7 {[%clk
0:00:48.3]} 32. Rd3 {[%clk 0:00:19.4]} 32... Qe5 {[%clk 0:00:48.1]} 33. f4
{[%clk 0:00:17.3]} 33... Qe4 {[%clk 0:00:47]} 34. Bd4 {[%clk 0:00:10]} 34...
Bxf4 {[%clk 0:00:44]} 35. Bxc3 {[%clk 0:00:09.9]} 35... Be3+ {[%clk 0:00:42.3]}
36. Kf1 {[%clk 0:00:08]} 36... Qf4+ {[%clk 0:00:42.4]} 37. Ke2 {[%clk
0:00:04.7]} 37... Qf2+ {[%clk 0:00:42.9]} 38. Kd1 {[%clk 0:00:05]} 38... Qf1+
{[%clk 0:00:43.8]} 39. Be1 {[%clk 0:00:04.7]} 39... Bf2 {[%clk 0:00:44.1]} 0-1

[Event "*** Titled Tuesday Blitz"]
[Site "Chess.com"]
[Date "2021.02.09"]
[Round "10"]
[White "ErikRonka"]
[Black "GianmarcoVaR"]
[Result "0-1"]
[WhiteElo "2450"]
[BlackElo "2575"]
[TimeControl "180+1"]
[EndTime "11:54:55 PST"]
[Termination "GianmarcoVaR won by resignation"]

1. e4 {[%clk 0:03:00.9]} 1... e5 {[%clk 0:02:03.7]} 2. Nc3 {[%clk 0:02:59.5]}
2... Bc5 {[%clk 0:02:00.7]} 3. Bc4 {[%clk 0:02:26.9]} 3... Nf6 {[%clk 0:01:59]}
4. f4 {[%clk 0:02:22.5]} 4... d5 {[%clk 0:01:49.3]} 5. exd5 {[%clk 0:02:18.7]}
5... Ng4 {[%clk 0:01:49.3]} 6. Nf3 {[%clk 0:01:55.6]} 6... Nf2 {[%clk
0:01:43.3]} 7. Qe2 {[%clk 0:01:55.1]} 7... Nxh1 {[%clk 0:01:43.5]} 8. d4 {[%clk
0:01:47.5]} 8... Bb4 {[%clk 0:01:23.5]} 9. dxe5 {[%clk 0:01:38.2]} 9... Bg4
{[%clk 0:01:22]} 10. Bd2 {[%clk 0:01:28]} 10... Bxf3 {[%clk 0:01:20.6]} 11. Qxf3
{[%clk 0:01:23.7]} 11... Qh4+ {[%clk 0:01:20.7]} 12. g3 {[%clk 0:01:17.9]} 12...
Qxh2 {[%clk 0:01:21.1]} 13. O-O-O {[%clk 0:01:11.5]} 13... Nxg3 {[%clk
0:01:17.7]} 14. d6 {[%clk 0:00:45.7]} 14... Nc6 {[%clk 0:00:35.3]} 15. d7+
{[%clk 0:00:25]} 15... Kxd7 {[%clk 0:00:33.5]} 16. Be1+ {[%clk 0:00:24.8]} 16...
Kc8 {[%clk 0:00:32.8]} 17. Bxg3 {[%clk 0:00:24.6]} 17... Qh6 {[%clk 0:00:31.3]}
18. Qg4+ {[%clk 0:00:17.7]} 18... Kb8 {[%clk 0:00:31]} 19. Bxf7 {[%clk
0:00:16.9]} 19... Nxe5 {[%clk 0:00:31]} 20. Qe6 {[%clk 0:00:04.4]} 20... Nxf7
{[%clk 0:00:30.9]} 21. Qxf7 {[%clk 0:00:04.1]} 21... Bxc3 {[%clk 0:00:29.9]} 22.
bxc3 {[%clk 0:00:04]} 22... Qf6 {[%clk 0:00:28.2]} 23. Qc4 {[%clk 0:00:03.6]}
23... Rd8 {[%clk 0:00:27]} 24. Rf1 {[%clk 0:00:02.9]} 24... Qa6 {[%clk
0:00:25.6]} 25. Qxa6 {[%clk 0:00:01.2]} 25... bxa6 {[%clk 0:00:26]} 26. f5
{[%clk 0:00:02.1]} 26... Kb7 {[%clk 0:00:25.4]} 27. f6 {[%clk 0:00:02.5]} 27...
gxf6 {[%clk 0:00:25.7]} 28. Rxf6 {[%clk 0:00:03.3]} 28... Rd7 {[%clk 0:00:26.3]}
29. Rh6 {[%clk 0:00:02]} 29... Rg8 {[%clk 0:00:26.5]} 30. Be5 {[%clk 0:00:02.3]}
30... Rg6 {[%clk 0:00:27.4]} 31. Rh5 {[%clk 0:00:02.1]} 31... Rd5 {[%clk
0:00:27]} 32. Rxh7 {[%clk 0:00:02.4]} 32... Rxe5 {[%clk 0:00:27]} 0-1

[Event "*** Titled Tuesday Blitz"]
[Site "Chess.com"]
[Date "2021.02.09"]
[Round "10"]
[White "bugsbunny444"]
[Black "Happy1712Drummer"]
[Result "0-1"]
[WhiteElo "2585"]
[BlackElo "2430"]
[TimeControl "180+1"]
[EndTime "11:54:57 PST"]
[Termination "Happy1712Drummer won by resignation"]

1. Nf3 {[%clk 0:03:00.9]} 1... Nf6 {[%clk 0:02:58.4]} 2. c4 {[%clk 0:03:01]}
2... c6 {[%clk 0:02:56.8]} 3. g3 {[%clk 0:03:00.3]} 3... d5 {[%clk 0:02:57.7]}
4. Bg2 {[%clk 0:03:00.1]} 4... Bg4 {[%clk 0:02:56.4]} 5. Ne5 {[%clk 0:02:59.8]}
5... Be6 {[%clk 0:02:53.2]} 6. cxd5 {[%clk 0:03:00]} 6... Bxd5 {[%clk
0:02:53.3]} 7. Nf3 {[%clk 0:03:00.7]} 7... c5 {[%clk 0:02:53.7]} 8. Nc3 {[%clk
0:03:01.2]} 8... Bc6 {[%clk 0:02:54.1]} 9. O-O {[%clk 0:03:00.9]} 9... e6 {[%clk
0:02:53.6]} 10. Re1 {[%clk 0:03:01.3]} 10... Nbd7 {[%clk 0:02:53.5]} 11. e4
{[%clk 0:03:01.5]} 11... Be7 {[%clk 0:02:51.8]} 12. d4 {[%clk 0:03:02.1]} 12...
cxd4 {[%clk 0:02:49.2]} 13. Nxd4 {[%clk 0:03:02.7]} 13... Ne5 {[%clk 0:02:29.4]}
14. h3 {[%clk 0:02:09]} 14... O-O {[%clk 0:02:23.9]} 15. Be3 {[%clk 0:02:05.8]}
15... Nc4 {[%clk 0:02:12.3]} 16. Nxc6 {[%clk 0:01:47.6]} 16... bxc6 {[%clk
0:02:13.2]} 17. Qe2 {[%clk 0:01:48.1]} 17... Nxe3 {[%clk 0:02:08.4]} 18. Qxe3
{[%clk 0:01:48.5]} 18... Qb6 {[%clk 0:02:07.6]} 19. Na4 {[%clk 0:01:39.3]} 19...
Qxe3 {[%clk 0:01:59.3]} 20. Rxe3 {[%clk 0:01:38.6]} 20... Rfd8 {[%clk
0:01:56.5]} 21. Rc1 {[%clk 0:01:14.2]} 21... Rd4 {[%clk 0:01:45.8]} 22. b3
{[%clk 0:01:06.5]} 22... c5 {[%clk 0:01:35.4]} 23. Nxc5 {[%clk 0:00:50.9]} 23...
Rc8 {[%clk 0:01:30.9]} 24. Rec3 {[%clk 0:00:48.4]} 24... h5 {[%clk 0:01:29.5]}
25. R1c2 {[%clk 0:00:19.3]} 25... g5 {[%clk 0:01:15.1]} 26. f3 {[%clk
0:00:11.9]} 26... Bd6 {[%clk 0:01:02.3]} 27. Kf2 {[%clk 0:00:06.9]} 27... h4
{[%clk 0:00:48.6]} 28. gxh4 {[%clk 0:00:06.7]} 28... gxh4 {[%clk 0:00:49.1]} 29.
Ke3 {[%clk 0:00:06.8]} 29... Rd1 {[%clk 0:00:48]} 30. Nd3 {[%clk 0:00:02.1]}
30... Rxc3 {[%clk 0:00:44.9]} 31. Rxc3 {[%clk 0:00:03]} 31... Rg1 {[%clk
0:00:38.3]} 32. e5 {[%clk 0:00:03.2]} 32... Nd5+ {[%clk 0:00:37.2]} 33. Kd4
{[%clk 0:00:02.6]} 33... Bxe5+ {[%clk 0:00:33.6]} 34. Nxe5 {[%clk 0:00:02.4]}
34... Nxc3 {[%clk 0:00:34.1]} 0-1

[Event "*** Titled Tuesday Blitz"]
[Site "Chess.com"]
[Date "2021.02.09"]
[Round "10"]
[White "Angel_Hranitel_37"]
[Black "Margency"]
[Result "1-0"]
[WhiteElo "2517"]
[BlackElo "2636"]
[TimeControl "180+1"]
[EndTime "11:54:58 PST"]
[Termination "Angel_Hranitel_37 won by resignation"]

1. Nf3 {[%clk 0:02:57.3]} 1... d5 {[%clk 0:02:59.8]} 2. d4 {[%clk 0:02:57.3]}
2... e6 {[%clk 0:02:59.7]} 3. c4 {[%clk 0:02:57.1]} 3... c5 {[%clk 0:02:59.9]}
4. cxd5 {[%clk 0:02:56.7]} 4... exd5 {[%clk 0:03:00.8]} 5. g3 {[%clk 0:02:57]}
5... Nf6 {[%clk 0:03:00.9]} 6. Bg2 {[%clk 0:02:57.5]} 6... Nc6 {[%clk
0:03:01.5]} 7. O-O {[%clk 0:02:57.6]} 7... Be7 {[%clk 0:03:01.9]} 8. dxc5 {[%clk
0:02:57.9]} 8... Bxc5 {[%clk 0:03:01.8]} 9. a3 {[%clk 0:02:58.3]} 9... Ne4
{[%clk 0:03:01.5]} 10. Nfd2 {[%clk 0:02:57.5]} 10... f5 {[%clk 0:03:01]} 11. Nc3
{[%clk 0:02:54.6]} 11... O-O {[%clk 0:02:53.1]} 12. Na4 {[%clk 0:02:54.3]} 12...
Be7 {[%clk 0:02:50.3]} 13. Nb3 {[%clk 0:02:52.6]} 13... Bf6 {[%clk 0:02:48.7]}
14. f3 {[%clk 0:02:46.4]} 14... Ng5 {[%clk 0:02:28.5]} 15. Bxg5 {[%clk
0:02:40.6]} 15... Bxg5 {[%clk 0:02:29.4]} 16. f4 {[%clk 0:02:41.4]} 16... Bf6
{[%clk 0:02:27.7]} 17. Qxd5+ {[%clk 0:02:39.9]} 17... Kh8 {[%clk 0:02:14.6]} 18.
Qxd8 {[%clk 0:02:32.4]} 18... Rxd8 {[%clk 0:02:13.8]} 19. Rfd1 {[%clk 0:02:33]}
19... Be6 {[%clk 0:01:28.4]} 20. Nbc5 {[%clk 0:02:30.9]} 20... Bg8 {[%clk
0:01:21.6]} 21. Nxb7 {[%clk 0:02:29]} 21... Rxd1+ {[%clk 0:01:21.2]} 22. Rxd1
{[%clk 0:02:29.8]} 22... Nd4 {[%clk 0:01:21.1]} 23. e3 {[%clk 0:01:40.7]} 23...
Bb3 {[%clk 0:01:18.4]} 24. Rxd4 {[%clk 0:01:40.8]} 24... Bxd4 {[%clk 0:01:17.7]}
25. exd4 {[%clk 0:01:41.7]} 25... Bxa4 {[%clk 0:01:03.2]} 26. Nc5 {[%clk
0:01:42]} 26... Rd8 {[%clk 0:01:03.8]} 27. Nxa4 {[%clk 0:01:41.5]} 27... Rxd4
{[%clk 0:01:04.5]} 28. Nc3 {[%clk 0:01:20.5]} 28... Rd2 {[%clk 0:01:02.8]} 29.
b4 {[%clk 0:01:09.6]} 29... Rd3 {[%clk 0:00:59.2]} 30. Nb5 {[%clk 0:01:10.2]}
30... a6 {[%clk 0:00:58.6]} 31. Bf1 {[%clk 0:01:10.9]} 31... Rb3 {[%clk
0:00:49.3]} 32. Nc7 {[%clk 0:01:11]} 32... Rxa3 {[%clk 0:00:48.7]} 33. Nxa6
{[%clk 0:01:05.7]} 33... g6 {[%clk 0:00:47.7]} 34. b5 {[%clk 0:01:06]} 34... Rb3
{[%clk 0:00:48.2]} 35. Nc5 {[%clk 0:01:04.6]} 35... Rb2 {[%clk 0:00:48.6]} 36.
Nd7 {[%clk 0:01:04.7]} 36... Kg7 {[%clk 0:00:47.2]} 37. Bc4 {[%clk 0:00:48.9]}
37... Rd2 {[%clk 0:00:31.5]} 38. Be6 {[%clk 0:00:44.2]} 38... Rd6 {[%clk
0:00:18.1]} 39. b6 {[%clk 0:00:44.6]} 39... Rxe6 {[%clk 0:00:18.7]} 40. b7
{[%clk 0:00:44.9]} 40... Re1+ {[%clk 0:00:17.6]} 41. Kf2 {[%clk 0:00:44.7]}
41... Rb1 {[%clk 0:00:18.5]} 42. b8=Q {[%clk 0:00:44.9]} 42... Rxb8 {[%clk
0:00:19]} 43. Nxb8 {[%clk 0:00:45.8]} 43... Kf6 {[%clk 0:00:19.8]} 44. Nc6
{[%clk 0:00:46.7]} 44... h6 {[%clk 0:00:19.5]} 45. Ke3 {[%clk 0:00:44.7]} 45...
g5 {[%clk 0:00:20]} 46. Kd4 {[%clk 0:00:45]} 1-0

[Event "*** Titled Tuesday Blitz"]
[Site "Chess.com"]
[Date "2021.02.09"]
[Round "10"]
[White "paulrusan"]
[Black "C_K_G"]
[Result "1-0"]
[WhiteElo "2242"]
[BlackElo "2101"]
[TimeControl "180+1"]
[EndTime "11:54:58 PST"]
[Termination "paulrusan won by checkmate"]

1. e4 {[%clk 0:03:00.9]} 1... c5 {[%clk 0:02:59.7]} 2. b4 {[%clk 0:02:58.3]}
2... b6 {[%clk 0:02:55.5]} 3. bxc5 {[%clk 0:02:57.5]} 3... bxc5 {[%clk
0:02:55.3]} 4. Nc3 {[%clk 0:02:57.9]} 4... a6 {[%clk 0:02:54.3]} 5. Nf3 {[%clk
0:02:53.1]} 5... e6 {[%clk 0:02:53.5]} 6. Bc4 {[%clk 0:02:50.4]} 6... Bb7 {[%clk
0:02:51.5]} 7. Rb1 {[%clk 0:02:48.7]} 7... Qc7 {[%clk 0:02:50.1]} 8. e5 {[%clk
0:02:43.1]} 8... Nc6 {[%clk 0:02:41.6]} 9. Qe2 {[%clk 0:02:42.7]} 9... Nge7
{[%clk 0:02:39.4]} 10. Ne4 {[%clk 0:02:30.4]} 10... Nf5 {[%clk 0:02:38.1]} 11.
c3 {[%clk 0:02:22.4]} 11... d5 {[%clk 0:02:26.3]} 12. exd6 {[%clk 0:02:21.7]}
12... Nxd6 {[%clk 0:02:24.2]} 13. Nxc5 {[%clk 0:02:11.5]} 13... Nxc4 {[%clk
0:01:48]} 14. Rxb7 {[%clk 0:01:46.1]} 14... Qc8 {[%clk 0:01:40]} 15. Qxc4 {[%clk
0:01:29.9]} 15... Bxc5 {[%clk 0:01:38]} 16. Qxc5 {[%clk 0:01:29.9]} 16... Qxb7
{[%clk 0:01:36.6]} 17. O-O {[%clk 0:01:29.9]} 17... Qb5 {[%clk 0:01:29.2]} 18.
Qd6 {[%clk 0:01:26.4]} 18... Qd5 {[%clk 0:01:27.4]} 19. Qc7 {[%clk 0:01:18.6]}
19... O-O {[%clk 0:01:23.6]} 20. d4 {[%clk 0:01:11.4]} 20... Rfc8 {[%clk
0:01:18.8]} 21. Qg3 {[%clk 0:01:11.3]} 21... Ne7 {[%clk 0:01:05.6]} 22. Bd2
{[%clk 0:01:06.2]} 22... Qxa2 {[%clk 0:01:01.8]} 23. h4 {[%clk 0:01:02.5]} 23...
Nf5 {[%clk 0:00:52.9]} 24. Qf4 {[%clk 0:00:57.1]} 24... h5 {[%clk 0:00:47.9]}
25. Qg5 {[%clk 0:00:51]} 25... g6 {[%clk 0:00:39.4]} 26. Qf6 {[%clk 0:00:49.8]}
26... Rc7 {[%clk 0:00:34.5]} 27. Re1 {[%clk 0:00:48.5]} 27... Rb8 {[%clk
0:00:29.8]} 28. Bf4 {[%clk 0:00:47.6]} 28... Rcb7 {[%clk 0:00:17.9]} 29. Be5
{[%clk 0:00:42.9]} 29... Kf8 {[%clk 0:00:17.9]} 30. Ng5 {[%clk 0:00:37.6]} 30...
Ke8 {[%clk 0:00:16.7]} 31. Bxb8 {[%clk 0:00:33.5]} 31... Qd2 {[%clk 0:00:12.4]}
32. Rxe6+ {[%clk 0:00:25.1]} 32... fxe6 {[%clk 0:00:10.3]} 33. Qxe6+ {[%clk
0:00:23.6]} 33... Re7 {[%clk 0:00:10]} 34. Qc8# {[%clk 0:00:21.3]} 1-0

[Event "*** Titled Tuesday Blitz"]
[Site "Chess.com"]
[Date "2021.02.09"]
[Round "10"]
[White "mbojan"]
[Black "zacachess"]
[Result "1-0"]
[WhiteElo "2613"]
[BlackElo "2417"]
[TimeControl "180+1"]
[EndTime "11:55:00 PST"]
[Termination "mbojan won by resignation"]

1. d4 {[%clk 0:03:00.9]} 1... Nf6 {[%clk 0:02:59.3]} 2. g3 {[%clk 0:03:01.8]}
2... e6 {[%clk 0:02:48.2]} 3. Bg2 {[%clk 0:03:02.4]} 3... d5 {[%clk 0:02:46.7]}
4. Nf3 {[%clk 0:03:03]} 4... Be7 {[%clk 0:02:46.9]} 5. O-O {[%clk 0:03:03.7]}
5... O-O {[%clk 0:02:47.5]} 6. c4 {[%clk 0:03:04.5]} 6... c6 {[%clk 0:02:47.1]}
7. Qc2 {[%clk 0:03:02.5]} 7... Nbd7 {[%clk 0:02:45.4]} 8. Rd1 {[%clk 0:02:57.6]}
8... b6 {[%clk 0:02:45]} 9. Bf4 {[%clk 0:02:51.7]} 9... Bb7 {[%clk 0:02:44.6]}
10. Nc3 {[%clk 0:02:49.4]} 10... c5 {[%clk 0:02:29]} 11. Ne5 {[%clk 0:02:32.7]}
11... cxd4 {[%clk 0:02:21.9]} 12. Rxd4 {[%clk 0:02:32.7]} 12... Nxe5 {[%clk
0:02:17.5]} 13. Bxe5 {[%clk 0:02:32.7]} 13... Nd7 {[%clk 0:02:18.1]} 14. Bf4
{[%clk 0:02:01.4]} 14... e5 {[%clk 0:02:13.7]} 15. Nxd5 {[%clk 0:02:01.5]} 15...
exd4 {[%clk 0:01:39.3]} 16. Nxe7+ {[%clk 0:02:01.2]} 16... Qxe7 {[%clk
0:01:39.5]} 17. Bxb7 {[%clk 0:02:01.7]} 17... Rad8 {[%clk 0:01:29.2]} 18. Bf3
{[%clk 0:02:02.1]} 18... Ne5 {[%clk 0:01:26.7]} 19. Bxe5 {[%clk 0:02:02.1]}
19... Qxe5 {[%clk 0:01:26.4]} 20. Rd1 {[%clk 0:02:02.8]} 20... Rfe8 {[%clk
0:01:24.7]} 21. b3 {[%clk 0:01:59.3]} 21... a5 {[%clk 0:01:23.9]} 22. Kg2 {[%clk
0:01:56.4]} 22... g6 {[%clk 0:01:23.2]} 23. Rd2 {[%clk 0:01:56.2]} 23... Kg7
{[%clk 0:01:23.3]} 24. Qd1 {[%clk 0:01:52.2]} 24... Rd6 {[%clk 0:01:21.4]} 25.
Bd5 {[%clk 0:01:47.3]} 25... Rxd5 {[%clk 0:01:16.8]} 26. cxd5 {[%clk 0:01:47.1]}
26... Qxd5+ {[%clk 0:01:17.7]} 27. Kg1 {[%clk 0:01:45.7]} 27... Rd8 {[%clk
0:01:17.1]} 28. Rd3 {[%clk 0:01:43.1]} 28... h5 {[%clk 0:01:15.8]} 29. e3 {[%clk
0:01:41.4]} 29... Qf5 {[%clk 0:00:51]} 30. Rxd4 {[%clk 0:01:41]} 30... Rc8
{[%clk 0:00:51.3]} 31. h4 {[%clk 0:01:35.2]} 31... Rc2 {[%clk 0:00:49.3]} 32.
Rf4 {[%clk 0:01:33.4]} 32... Qc5 {[%clk 0:00:44.2]} 33. Qf3 {[%clk 0:01:17.8]}
33... f5 {[%clk 0:00:38.5]} 34. Rd4 {[%clk 0:00:58.6]} 34... Rxa2 {[%clk
0:00:21.1]} 35. Qb7+ {[%clk 0:00:50.7]} 35... Kh6 {[%clk 0:00:19.8]} 36. Rd7
{[%clk 0:00:40.9]} 36... Ra1+ {[%clk 0:00:15.8]} 37. Kg2 {[%clk 0:00:38.7]}
37... g5 {[%clk 0:00:03]} 38. Rh7+ {[%clk 0:00:39.2]} 1-0